bitfinex/quotes_BTCUSD_20251205
["timestamp","ask_amount","ask_price","bid_price","bid_amount"]
[1764954495506,0.01126227,88792.0,88785.0,0.01126316]
[1764954495507,0.01126265,88789.0,88785.0,0.01126316]
[1764954495736,0.05274202,88794.0,88789.0,0.01126265]
[1764954495924,0.0112624,88791.0,88786.0,0.01126303]
[1764954496342,0.03941884,88790.0,88787.0,0.01126291]
[1764954496560,0.01126252,88790.0,88785.0,0.01126316]
[1764954496744,0.03941929,88789.0,88786.0,0.01126303]
[1764954497035,0.01126405,88778.0,88774.0,0.22529009]
[1764954497231,0.01126506,88770.0,88767.0,0.22542606]
[1764954497443,0.01126506,88770.0,88767.0,0.00011941]
[1764954497652,0.02816235,88771.0,88768.0,0.01126532]
[1764954497866,0.02816235,88771.0,88768.0,0.23656992]
[1764954498082,0.26472766,88771.0,88767.0,0.00011941]
[1764954498294,0.6187404,88768.0,88767.0,0.00011941]
[1764954498524,0.6187404,88768.0,88767.0,0.00111941]
[1764954498754,0.6202004,88768.0,88767.0,0.00111941]
[1764954498987,0.323,88768.0,88767.0,0.00011941]
[1764954499622,0.37298,88768.0,88767.0,0.00011941]
[1764954499822,0.37106,88768.0,88767.0,0.00011941]
[1764954500040,0.37298,88768.0,88767.0,0.00011941]
[1764954500248,1.40940763,88768.0,88767.0,0.00011941]
[1764954500456,1.13098763,88768.0,88767.0,0.00011941]
[1764954500700,1.15289162,88768.0,88767.0,0.00011941]
[1764954500931,0.02190399,88741.0,88740.0,0.0004]
[1764954501132,0.08697279,88741.0,88740.0,0.0004]
[1764954501343,0.41023279,88741.0,88740.0,0.0004]
[1764954501620,0.54849376,88741.0,88740.0,0.0004]
[1764954501810,0.0001188,88741.0,88740.0,0.2257775]
[1764954502296,0.0001188,88741.0,88740.0,0.2277775]
[1764954502507,0.0001188,88741.0,88740.0,0.44979049]
[1764954503141,0.0001188,88741.0,88740.0,0.29030049]
[1764954503563,0.0001188,88741.0,88740.0,0.28830049]
[1764954503777,0.0001188,88741.0,88740.0,0.29130049]
[1764954503996,0.0001188,88741.0,88740.0,0.45079049]
[1764954504216,0.0001188,88741.0,88740.0,0.44779049]
[1764954504428,0.0001188,88741.0,88740.0,0.35763049]
[1764954504641,0.0001188,88741.0,88740.0,0.29330049]
[1764954505268,0.0001188,88741.0,88740.0,0.28830049]
[1764954505482,0.0001188,88741.0,88740.0,0.0004]
[1764954505693,0.0001188,88741.0,88740.0,0.0014]
[1764954506127,0.0001188,88741.0,88740.0,0.0004]
[1764954506336,0.02492144,88741.0,88740.0,0.0004]
[1764954506542,0.02492144,88741.0,88740.0,0.0064]
[1764954506750,0.02492144,88741.0,88740.0,0.2317775]
[1764954506962,0.0001188,88741.0,88740.0,0.2257775]
[1764954507429,0.0001188,88741.0,88740.0,0.29130049]
[1764954507828,0.0001188,88741.0,88740.0,0.45079049]
[1764954508037,0.0001188,88741.0,88740.0,0.44779049]
[1764954508446,0.0001188,88741.0,88740.0,0.47371222]
[1764954509283,0.0001188,88741.0,88740.0,0.35663049]
[1764954509496,0.0001188,88741.0,88740.0,0.29230049]
[1764954509699,0.0001188,88741.0,88740.0,0.30634049]
[1764954509965,0.0021188,88741.0,88740.0,0.48783049]
[1764954510382,0.0001188,88741.0,88740.0,0.44779049]
[1764954510589,0.0011188,88741.0,88740.0,0.36663049]
[1764954510791,0.0011188,88741.0,88740.0,0.30230049]
[1764954510996,0.0011188,88741.0,88740.0,0.46179049]
[1764954511616,0.0011188,88741.0,88740.0,0.36663049]
[1764954511821,0.0011188,88741.0,88740.0,0.37163049]
[1764954512040,0.0011188,88741.0,88740.0,0.46679049]
[1764954512246,0.0011188,88741.0,88740.0,0.30230049]
[1764954512670,0.0011188,88741.0,88740.0,0.30430049]
[1764954512902,0.0011188,88741.0,88740.0,0.36538049]
[1764954513136,0.0011188,88741.0,88740.0,0.45703049]
[1764954513358,0.0011188,88741.0,88740.0,0.2417775]
[1764954513581,0.0011188,88741.0,88740.0,0.45703049]
[1764954513788,0.0011188,88741.0,88740.0,0.30430049]
[1764954513997,0.0011188,88741.0,88740.0,0.2417775]
[1764954514250,0.0011188,88741.0,88740.0,0.45703049]
[1764954515127,0.0011188,88741.0,88740.0,0.36538049]
[1764954515754,0.0011188,88741.0,88740.0,0.30430049]
[1764954516178,0.0016088,88741.0,88740.0,0.0164]
[1764954516391,0.03146164,88741.0,88740.0,0.0164]
[1764954516605,0.05223167,88741.0,88740.0,0.0164]
[1764954516819,0.39713566,88741.0,88740.0,0.0164]
[1764954517544,0.39613566,88741.0,88740.0,0.0024]
[1764954517745,0.37423167,88741.0,88740.0,0.0054]
[1764954518414,0.00173167,88741.0,88740.0,0.0034]
[1764954519099,0.0001188,88741.0,88740.0,0.0004]
[1764954519546,0.0001188,88741.0,88740.0,0.21565299]
[1764954519753,0.0001188,88741.0,88740.0,0.12400299]
[1764954519955,0.0001188,88741.0,88740.0,0.06292299]
[1764954520178,0.0001188,88741.0,88740.0,0.06492299]
[1764954520822,0.0001188,88741.0,88740.0,0.12600299]
[1764954521208,0.0001188,88741.0,88740.0,0.06492299]
[1764954521644,0.0001188,88741.0,88740.0,0.06292299]
[1764954522930,0.0001188,88741.0,88740.0,0.21765299]
[1764954523354,0.0001188,88741.0,88740.0,0.21565299]
[1764954523560,0.0001188,88741.0,88740.0,0.44403049]
[1764954524476,0.0001188,88741.0,88740.0,0.44103049]
[1764954524703,0.0006088,88741.0,88740.0,0.29330049]
[1764954524924,0.27660663,88741.0,88740.0,0.06892299]
[1764954525184,0.27660663,88741.0,88740.0,0.0064]
[1764954525185,1.00847862,88741.0,88740.0,0.0064]
[1764954525399,0.73332163,88741.0,88740.0,0.0064]
[1764954525611,0.75728647,88741.0,88740.0,0.0054]
[1764954525853,0.76768843,88741.0,88740.0,0.0054]
[1764954526065,0.81954793,88741.0,88740.0,0.0054]
[1764954526268,0.78959242,88741.0,88740.0,0.0054]
[1764954526476,0.78959242,88741.0,88740.0,0.0004]
[1764954526893,0.81954793,88741.0,88740.0,0.0014]
[1764954527111,0.78959242,88741.0,88740.0,0.0004]
[1764954527324,0.76768843,88741.0,88740.0,0.0004]
[1764954527533,0.77168843,88741.0,88740.0,0.0004]
[1764954527771,0.80163988,88741.0,88740.0,0.0004]
[1764954527990,0.77168843,88741.0,88740.0,0.0004]
[1764954528427,0.80163988,88741.0,88740.0,0.0004]
[1764954528633,0.80268843,88741.0,88740.0,0.0004]
[1764954529484,0.83263988,88741.0,88740.0,0.0004]
[1764954529730,0.82459242,88741.0,88740.0,0.0004]
[1764954529941,0.80268843,88741.0,88740.0,0.0004]
[1764954530164,0.82459242,88741.0,88740.0,0.0004]
[1764954530578,0.93429748,88741.0,88740.0,0.0004]
[1764954531197,0.96424893,88741.0,88740.0,0.0004]
[1764954531407,0.93429748,88741.0,88740.0,0.0004]
[1764954531830,0.01126976,88733.0,88730.0,0.0004]
[1764954532049,1.70431735,88731.0,88730.0,0.0004]
[1764954532257,1.83798725,88731.0,88730.0,0.0004]
[1764954532477,1.88699725,88731.0,88730.0,0.0004]
[1764954532962,0.78445436,88731.0,88730.0,0.0004]
[1764954533181,0.82078835,88731.0,88730.0,0.0004]
[1764954533417,0.83882835,88731.0,88730.0,0.0004]
[1764954533632,0.84082835,88731.0,88730.0,0.0004]
[1764954533842,0.82278835,88731.0,88730.0,0.0004]
[1764954534063,0.83882835,88731.0,88730.0,0.0004]
[1764954534266,0.93149341,88731.0,88730.0,0.0004]
[1764954534403,0.83982835,88731.0,88730.0,0.0004]
[1764954534807,0.84082835,88731.0,88730.0,0.0004]
[1764954537926,0.22543358,88718.0,88712.0,0.22544639]
[1764954538129,0.01127154,88719.0,88712.0,0.22544639]
[1764954538130,0.01127179,88717.0,88712.0,0.23671882]
[1764954538335,0.01127255,88711.0,88707.0,0.01127306]
[1764954538551,0.01127255,88711.0,88707.0,0.06252299]
[1764954538756,0.04164,88718.0,88705.0,0.01127332]
[1764954538757,0.01127268,88710.0,88705.0,0.01127332]
[1764954538961,0.01127319,88706.0,88703.0,0.23674357]
[1764954539163,0.2367375,88706.0,88703.0,0.01127357]
[1764954539316,0.01127332,88705.0,88700.0,0.0004]
[1764954539514,0.01127357,88703.0,88700.0,0.23715252]
[1764954539719,0.00011871,88705.0,88702.0,0.0112737]
[1764954539920,0.00011871,88705.0,88704.0,0.06614]
[1764954540305,0.00011871,88705.0,88703.0,0.22546955]
[1764954540693,0.00011871,88705.0,88704.0,0.06614]
[1764954540909,0.00011871,88705.0,88704.0,0.22508299]
[1764954541506,0.00011871,88705.0,88704.0,0.06252299]
[1764954541660,0.00011871,88705.0,88703.0,0.22546955]
[1764954542038,0.00011871,88705.0,88704.0,0.06614]
[1764954542236,0.00011871,88705.0,88704.0,0.22508299]
[1764954542652,0.0495,88734.0,88704.0,0.22508299]
[1764954542653,0.01126862,88742.0,88735.0,0.01126951]
[1764954542780,0.00173228,88742.0,88739.0,0.011269]
[1764954542983,0.00173228,88742.0,88740.0,0.22537575]
[1764954543193,0.00011941,88742.0,88740.0,0.22537575]
[1764954543419,0.00011941,88742.0,88741.0,0.24627299]
[1764954544217,0.00311941,88742.0,88741.0,0.14995299]
[1764954544418,0.00311941,88742.0,88741.0,0.08589299]
[1764954545388,0.00311941,88742.0,88741.0,0.08989299]
[1764954545523,0.00011941,88742.0,88741.0,0.08989299]
[1764954545966,0.00011941,88742.0,88741.0,0.006]
[1764954546166,0.05132831,88742.0,88741.0,0.004]
[1764954546326,0.23665007,88739.0,88736.0,0.01126938]
[1764954546681,0.00173228,88742.0,88739.0,0.23664633]
[1764954546884,0.00173228,88742.0,88737.0,0.01126925]
[1764954547021,0.23664728,88740.0,88737.0,0.22538504]
[1764954547224,0.00173228,88742.0,88735.0,0.01126951]
[1764954547425,0.00173228,88742.0,88737.0,0.01126925]
[1764954547630,0.00173228,88742.0,88741.0,0.04633]
[1764954547888,0.00173228,88742.0,88740.0,0.22537677]
[1764954548109,0.00173228,88742.0,88741.0,0.22290299]
[1764954548110,0.00011941,88742.0,88741.0,0.22290299]
[1764954548883,0.00011941,88742.0,88741.0,0.24094299]
[1764954549105,0.02992782,88782.0,88741.0,0.26286472]
[1764954549312,0.03990066,88787.0,88741.0,0.26286472]
[1764954549313,0.23652324,88787.0,88783.0,0.23653108]
[1764954549522,0.00011939,88787.0,88785.0,0.01126316]
[1764954549744,0.00173226,88787.0,88784.0,0.01126329]
[1764954549921,0.06076316,88785.0,88779.0,0.01126392]
[1764954550159,0.00173226,88787.0,88784.0,0.01126329]
[1764954550399,0.01299517,88787.0,88781.0,0.01126367]
[1764954550605,0.01126354,88782.0,88778.0,0.23654388]
[1764954550830,0.02815886,88782.0,88779.0,0.01126392]
[1764954551068,0.02815886,88782.0,88780.0,0.2252749]
[1764954551265,0.01126341,88783.0,88779.0,0.23654086]
[1764954551470,0.01126367,88781.0,88778.0,0.23654318]
[1764954551697,0.01126367,88781.0,88740.0,0.01795499]
[1764954551698,0.00049,88779.0,88762.0,0.01126608]
[1764954551889,0.00049,88779.0,88753.0,0.01126722]
[1764954551890,0.01126671,88757.0,88753.0,0.01126722]
[1764954552025,0.01126671,88757.0,88754.0,0.01126709]
[1764954552231,0.23659572,88759.0,88754.0,0.23660808]
[1764954552431,0.0112657,88765.0,88761.0,0.0112662]
[1764954552644,0.01126659,88758.0,88754.0,0.01126709]
[1764954552851,0.22532513,88761.0,88758.0,0.01126659]
[1764954553078,0.02816584,88760.0,88758.0,0.23699375]
[1764954553253,0.03943128,88762.0,88758.0,0.23699468]
[1764954553471,0.24772325,88759.0,88758.0,0.00039634]
[1764954553887,0.29673325,88759.0,88758.0,0.00039634]
[1764954554261,0.27482926,88759.0,88758.0,0.00139634]
[1764954554473,0.22581926,88759.0,88758.0,0.00139634]
[1764954554682,0.00049,88759.0,88758.0,0.00139634]
[1764954554861,0.323,88763.0,88758.0,0.04672634]
[1764954555074,0.323,88763.0,88760.0,0.23659208]
[1764954555225,0.0281652,88762.0,88760.0,0.23659208]
[1764954555632,0.323,88763.0,88762.0,0.22532164]
[1764954556040,0.08174082,88763.0,88762.0,0.22532164]
[1764954556243,0.001,88763.0,88762.0,0.22532164]
[1764954556439,0.001,88763.0,88758.0,0.00039634]
[1764954556440,0.22532926,88759.0,88758.0,0.00039634]
[1764954556669,0.0112662,88761.0,88758.0,0.00039634]
[1764954556992,0.02816584,88760.0,88758.0,0.00039634]
[1764954557276,0.02816584,88760.0,88758.0,0.22572747]
[1764954557483,0.05238639,88760.0,88758.0,0.22572747]
[1764954557636,0.0495,88759.0,88758.0,0.00039634]
[1764954557839,0.01226595,88763.0,88761.0,0.06406]
[1764954557840,0.001,88763.0,88761.0,0.06406]
[1764954558042,0.001,88763.0,88762.0,0.44822463]
[1764954558467,0.001,88763.0,88762.0,0.35190463]
[1764954558692,0.001,88763.0,88762.0,0.28784463]
[1764954558904,0.001,88763.0,88762.0,0.44822463]
[1764954559056,0.323,88781.0,88778.0,0.22527978]
[1764954559499,0.323,88781.0,88778.0,0.23654383]
[1764954559710,0.01126519,88769.0,88765.0,0.0112657]
[1764954559905,0.01126519,88769.0,88763.0,0.01126595]
[1764954560223,0.0495,88763.0,88760.0,0.23659254]
[1764954560427,0.323,88766.0,88764.0,0.22531573]
[1764954560769,0.00049,88761.0,88758.0,0.00039634]
[1764954560980,0.01126519,88769.0,88765.0,0.0112657]
[1764954561153,0.3342657,88765.0,88762.0,0.004]
[1764954561358,0.00049,88763.0,88762.0,0.004]
[1764954561496,0.00049,88763.0,88760.0,0.2365924]
[1764954561696,0.22580992,88763.0,88760.0,0.2365924]
[1764954561945,0.3342657,88765.0,88761.0,0.22532294]
[1764954562282,0.55958075,88765.0,88762.0,0.22532062]
[1764954562418,0.323,88765.0,88762.0,0.23658631]
[1764954562628,0.54831653,88765.0,88760.0,0.23659095]
[1764954562825,0.01126608,88762.0,88758.0,0.01166293]
[1764954563110,0.0117562,88761.0,88758.0,0.01166293]
[1764954563238,0.22532816,88760.0,88758.0,0.00039634]
[1764954563669,0.04148,88759.0,88758.0,0.00039634]
[1764954563873,0.09147,88759.0,88758.0,0.00039634]
[1764954564194,0.43637399,88759.0,88758.0,0.00039634]
[1764954564396,0.43637399,88759.0,88758.0,0.00439634]
[1764954564569,0.43637399,88759.0,88758.0,0.00139634]
[1764954564968,0.43637399,88759.0,88758.0,0.00039634]
[1764954565611,1.04729399,88759.0,88758.0,0.00039634]
[1764954565801,1.15699905,88759.0,88758.0,0.00039634]
[1764954566024,1.15799905,88759.0,88758.0,0.00039634]
[1764954566265,1.15699905,88759.0,88758.0,0.00039634]
[1764954566471,0.93049105,88759.0,88758.0,0.00039634]
[1764954566681,0.93349105,88759.0,88758.0,0.00039634]
[1764954567260,0.93449105,88759.0,88758.0,0.00039634]
[1764954567715,0.93449105,88759.0,88758.0,0.11078634]
[1764954567716,0.004,88759.0,88758.0,0.11078634]
[1764954567850,0.004,88759.0,88758.0,0.17330933]
[1764954568047,0.004,88759.0,88758.0,0.49496113]
[1764954568447,0.003,88759.0,88758.0,0.49496113]
[1764954568894,0.01126405,88778.0,88775.0,0.23655156]
[1764954569096,0.01126405,88778.0,88775.0,0.01126443]
[1764954569097,0.22528382,88777.0,88775.0,0.01126443]
[1764954569303,0.323,88776.0,88773.0,0.22529158]
[1764954569474,0.3342643,88776.0,88774.0,0.22529084]
[1764954569681,0.323,88776.0,88774.0,0.22529084]
[1764954570272,0.04148,88780.0,88778.0,0.22527949]
[1764954570478,0.06963949,88780.0,88778.0,0.22527949]
[1764954570733,0.06963949,88780.0,88777.0,0.23654488]
[1764954570734,0.04148,88780.0,88777.0,0.2365455]
[1764954570929,0.04148,88780.0,88778.0,0.22528056]
[1764954571364,0.06076392,88779.0,88776.0,0.0112643]
[1764954571560,0.01126494,88771.0,88768.0,0.01126532]
[1764954571734,0.01126443,88775.0,88772.0,0.01126481]
[1764954571952,0.02816076,88776.0,88774.0,0.22529057]
[1764954572158,0.02816076,88776.0,88774.0,0.22629057]
[1764954572519,0.02816076,88776.0,88774.0,0.22529057]
[1764954572916,0.001,88775.0,88774.0,0.22529057]
[1764954573127,0.04148,88780.0,88779.0,0.2252785]
[1764954573516,0.04197,88780.0,88779.0,0.2252785]
[1764954574689,0.22528668,88776.0,88774.0,0.002]
[1764954574891,0.22576869,88779.0,88777.0,0.23654619]
[1764954575128,0.22528654,88777.0,88774.0,0.002]
[1764954575331,0.22528654,88777.0,88768.0,0.01126532]
[1764954575332,0.00098,88775.0,88773.0,0.2252936]
[1764954575486,0.323,88776.0,88775.0,0.22528865]
[1764954575890,0.04148,88780.0,88779.0,0.2252785]
[1764954576276,0.02815854,88783.0,88782.0,0.22527088]
[1764954576473,0.11498228,88809.0,88807.0,0.06252299]
[1764954576676,0.08497459,88809.0,88807.0,0.2252066]
[1764954576884,0.02814871,88814.0,88811.0,0.01125986]
[1764954577256,0.02814871,88814.0,88809.0,0.01126012]
[1764954577257,0.01125961,88813.0,88809.0,0.01126012]
[1764954577459,0.06076037,88807.0,88803.0,0.01126088]
[1764954577674,0.02815125,88806.0,88803.0,0.01126088]
[1764954577896,0.02815125,88806.0,88803.0,0.23647762]
[1764954578067,0.02815125,88806.0,88804.0,0.22521408]
[1764954578279,0.00011944,88807.0,88802.0,0.011261]
[1764954578494,0.00011944,88807.0,88805.0,0.22521254]
[1764954579553,0.00011944,88807.0,88806.0,0.24048472]
[1764954579755,0.00011944,88807.0,88806.0,0.23656299]
[1764954579955,0.00011944,88807.0,88806.0,0.21856299]
[1764954580104,0.00011944,88807.0,88806.0,0.14333299]
[1764954580308,0.00011944,88807.0,88806.0,0.25848472]
[1764954581042,0.00011944,88807.0,88806.0,0.23656299]
[1764954581396,0.00011944,88807.0,88806.0,0.24056299]
[1764954581593,0.00011944,88807.0,88806.0,0.26248472]
[1764954582319,0.04139,88855.0,88827.0,0.06252299]
[1764954582517,0.04150939,88855.0,88853.0,0.2250896]
[1764954582728,0.02813604,88854.0,88849.0,0.01125505]
[1764954582888,0.02741297,88853.0,88852.0,0.01125467]
[1764954583098,0.02741297,88853.0,88851.0,0.22509466]
[1764954583099,0.02902584,88853.0,88851.0,0.22509466]
[1764954583294,0.00161287,88853.0,88851.0,0.22509466]
[1764954584509,0.01125555,88845.0,88837.0,0.01125657]
[1764954584701,0.00161287,88845.0,88830.0,0.018]
[1764954584923,0.01125657,88837.0,88831.0,0.23640191]
[1764954585123,0.01125644,88838.0,88832.0,0.0112572]
[1764954585124,0.22512946,88838.0,88832.0,0.0112572]
[1764954585268,0.02814142,88837.0,88834.0,0.01125695]
[1764954585470,0.01125707,88833.0,88826.0,0.23641487]
[1764954585670,0.01125707,88833.0,88830.0,0.01125745]
[1764954585671,0.00161287,88833.0,88830.0,0.01125745]
[1764954585919,0.00161287,88833.0,88827.0,0.01125783]
[1764954586119,0.00161287,88833.0,88830.0,0.23640382]
[1764954586323,0.323,88835.0,88832.0,0.0112572]
[1764954586548,0.02814237,88834.0,88833.0,0.22514155]
[1764954586873,0.0495,88833.0,88829.0,0.01125758]
[1764954587075,0.0495,88833.0,88829.0,0.23640794]
[1764954587397,0.02814301,88832.0,88830.0,0.22514767]
[1764954587604,0.02814111,88838.0,88837.0,0.22513142]
[1764954587812,0.323,88840.0,88839.0,0.22512635]
[1764954588428,0.016955,88851.0,88848.0,0.01125517]
[1764954588635,0.02813731,88850.0,88846.0,0.01125543]
[1764954588807,0.02813731,88850.0,88849.0,0.22510101]
[1764954588965,0.016955,88851.0,88849.0,0.22510101]
[1764954589167,0.016955,88851.0,88849.0,0.22510039]
[1764954589375,0.016955,88851.0,88846.0,0.01125543]
[1764954589376,0.01125492,88850.0,88846.0,0.01125543]
[1764954589635,0.02813762,88849.0,88847.0,0.22510608]
[1764954589825,0.02813762,88849.0,88847.0,0.2251052]
[1764954590614,0.02913731,88850.0,88846.0,0.01125543]
[1764954590825,0.00161287,88849.0,88847.0,0.22510608]
[1764954591256,0.00161287,88849.0,88848.0,0.22510354]
[1764954591461,0.00011939,88855.0,88854.0,0.22508834]
[1764954591727,0.00011939,88855.0,88854.0,0.33931834]
[1764954591914,0.00011939,88855.0,88854.0,0.43081834]
[1764954592069,0.00011939,88855.0,88854.0,0.33931834]
[1764954592264,0.00011939,88855.0,88854.0,0.22508834]
[1764954592473,0.00011939,88855.0,88854.0,0.38214834]
[1764954593079,0.00011939,88855.0,88854.0,0.38514834]
[1764954593747,0.00011939,88855.0,88854.0,0.22808834]
[1764954594111,0.00011939,88855.0,88854.0,0.29064834]
[1764954594350,0.00011939,88855.0,88854.0,0.44667133]
[1764954594982,0.00011939,88855.0,88854.0,0.44767133]
[1764954595187,0.00011939,88855.0,88854.0,0.46959306]
[1764954595392,0.00011939,88855.0,88854.0,0.44667133]
[1764954595557,0.00011939,88855.0,88854.0,0.46659306]
[1764954595738,0.00011939,88855.0,88854.0,0.44467133]
[1764954595942,0.00011939,88855.0,88854.0,0.46667133]
[1764954596143,0.00011939,88855.0,88854.0,0.46267133]
[1764954596599,0.00111939,88855.0,88854.0,0.50659306]
[1764954596924,0.00011939,88855.0,88854.0,0.46267133]
[1764954597162,0.00011939,88855.0,88854.0,0.46667133]
[1764954597366,0.00111939,88855.0,88854.0,0.39517133]
[1764954597785,0.00111939,88855.0,88854.0,0.32561133]
[1764954597959,0.00111939,88855.0,88854.0,0.26158299]
[1764954598159,0.00111939,88855.0,88854.0,0.48667133]
[1764954598791,0.00111939,88855.0,88854.0,0.32961133]
[1764954599411,0.00111939,88855.0,88854.0,0.24908834]
[1764954599617,0.00111939,88855.0,88854.0,0.024]
[1764954600315,0.00111939,88855.0,88854.0,0.02]
[1764954600316,0.00273226,88855.0,88854.0,0.02]
[1764954600528,0.00273226,88855.0,88850.0,0.07377791]
[1764954600529,0.00173226,88855.0,88850.0,0.07377791]
[1764954600982,0.00173226,88855.0,88854.0,0.005]
[1764954601150,0.45180192,88855.0,88854.0,0.005]
[1764954601393,0.00173226,88855.0,88854.0,0.005]
[1764954601579,0.00173226,88855.0,88854.0,0.004]
[1764954601995,0.05123226,88855.0,88854.0,0.004]
[1764954602333,0.00222226,88855.0,88854.0,0.004]
[1764954602560,0.00173226,88855.0,88854.0,0.004]
[1764954602970,0.00173226,88855.0,88853.0,0.22509008]
[1764954603377,0.00273226,88855.0,88853.0,0.22509008]
[1764954603581,0.00173226,88855.0,88853.0,0.22509008]
[1764954604051,0.00173226,88855.0,88854.0,0.002]
[1764954604259,0.00173226,88855.0,88853.0,0.22509008]
[1764954604699,0.00173226,88855.0,88853.0,0.002]
[1764954604900,0.00173226,88855.0,88853.0,0.2250897]
[1764954605511,0.00173226,88855.0,88854.0,0.001]
[1764954605918,0.00173226,88855.0,88854.0,0.06269]
[1764954606134,0.00173226,88855.0,88854.0,0.001]
[1764954606478,0.22508834,88854.0,88851.0,0.23635034]
[1764954606872,0.23634629,88853.0,88849.0,0.23635529]
[1764954607074,0.23634568,88853.0,88849.0,0.01125505]
[1764954607394,0.01125441,88854.0,88851.0,0.23635062]
[1764954607592,0.23634285,88854.0,88851.0,0.23635062]
[1764954607802,0.00098,88852.0,88847.0,0.23636129]
[1764954608006,0.33425454,88853.0,88837.0,0.23638658]
[1764954608007,0.01125593,88842.0,88837.0,0.23638658]
[1764954608175,0.098503,88854.0,88830.0,0.01125745]
[1764954608176,0.01125682,88835.0,88830.0,0.01125745]
[1764954608559,0.04113,88838.0,88830.0,0.01125745]
[1764954608560,0.23639305,88836.0,88832.0,0.0112572]
[1764954608753,0.01125669,88836.0,88833.0,0.23639848]
[1764954608957,0.01125682,88835.0,88831.0,0.01125733]
[1764954609184,0.01125669,88836.0,88833.0,0.01125707]
[1764954609362,0.04064,88838.0,88834.0,0.01125695]
[1764954609607,0.01125631,88839.0,88834.0,0.01125695]
[1764954609608,0.23638322,88839.0,88836.0,0.01125669]
[1764954609883,0.01125657,88837.0,88833.0,0.01125707]
[1764954610318,0.323,88842.0,88834.0,0.01125695]
[1764954610448,0.55937501,88842.0,88838.0,0.01125644]
[1764954610654,0.323,88843.0,88840.0,0.2363786]
[1764954610858,0.323,88843.0,88841.0,0.22511996]
[1764954611075,0.01125593,88842.0,88839.0,0.01125631]
[1764954611336,0.23637797,88841.0,88838.0,0.01125644]
[1764954611476,0.22516555,88824.0,88807.0,0.09674]
[1764954611703,0.01125986,88811.0,88799.0,0.04809]
[1764954612053,0.0112605,88806.0,88800.0,0.01126126]
[1764954612274,0.01126075,88804.0,88799.0,0.04809]
[1764954612687,0.22524285,88794.0,88789.0,0.02926265]
[1764954612908,0.01126138,88799.0,88795.0,0.01126189]
[1764954613108,0.33426062,88805.0,88793.0,0.04343]
[1764954613235,0.323,88805.0,88803.0,0.22521575]
[1764954613440,0.323,88805.0,88799.0,0.01126138]
[1764954613441,0.323,88805.0,88800.0,0.01126126]
[1764954613639,0.002,88804.0,88802.0,0.011261]
[1764954613842,0.002,88804.0,88803.0,0.22521683]
[1764954614066,0.33426012,88809.0,88806.0,0.23646916]
[1764954614588,0.33426012,88809.0,88806.0,0.0112605]
[1764954614789,0.33426012,88809.0,88805.0,0.23647238]
[1764954614996,0.323,88809.0,88806.0,0.23646997]
[1764954615196,0.01125999,88810.0,88803.0,0.01126088]
[1764954615435,0.323,88806.0,88804.0,0.01126075]
[1764954615618,0.3342605,88806.0,88803.0,0.01126088]
[1764954615817,0.3342605,88806.0,88803.0,0.23647755]
[1764954616261,0.55947103,88806.0,88803.0,0.01126088]
[1764954616620,0.22520347,88809.0,88806.0,0.22520831]
[1764954616621,0.323,88808.0,88806.0,0.22520831]
[1764954616825,0.004,88809.0,88808.0,0.22520493]
[1764954617027,0.33425935,88815.0,88812.0,0.22519479]
[1764954617421,0.33425935,88815.0,88810.0,0.01125999]
[1764954617422,0.55944768,88815.0,88811.0,0.2251969]
[1764954617600,0.55944751,88815.0,88811.0,0.2251969]
[1764954617810,0.323,88815.0,88811.0,0.2251969]
[1764954618017,0.01125935,88815.0,88810.0,0.23645863]
[1764954618185,0.323,88814.0,88810.0,0.23645863]
[1764954618387,0.323,88814.0,88808.0,0.01126024]
[1764954618388,0.23645519,88812.0,88808.0,0.01126024]
[1764954618558,0.00161287,88813.0,88812.0,0.22519479]
[1764954618758,0.04317287,88813.0,88812.0,0.22519479]
[1764954618959,0.00161287,88813.0,88812.0,0.22519479]
[1764954619559,0.323,88822.0,88821.0,0.22517197]
[1764954619757,0.05264733,88831.0,88828.0,0.23641125]
[1764954619982,0.01125745,88830.0,88825.0,0.22516145]
[1764954620180,0.01125821,88824.0,88820.0,0.01125872]
[1764954620382,0.22517535,88820.0,88817.0,0.23644105]
[1764954620584,0.01287108,88824.0,88818.0,0.01125897]
[1764954620786,0.00161287,88824.0,88822.0,0.22516927]
[1764954620987,0.00161287,88824.0,88815.0,0.01125935]
[1764954620988,0.01125885,88819.0,88815.0,0.01125935]
[1764954621194,0.01125885,88819.0,88812.0,0.2364536]
[1764954621195,0.2251867,88816.0,88812.0,0.2364536]
[1764954621438,0.23644593,88816.0,88813.0,0.01125961]
[1764954621650,0.00161287,88819.0,88817.0,0.003]
[1764954621957,0.323,88818.0,88817.0,0.003]
[1764954622092,0.3725,88818.0,88817.0,0.003]
[1764954622466,0.39440399,88818.0,88817.0,0.003]
[1764954622820,0.01126113,88801.0,88798.0,0.01126151]
[1764954623028,0.22522575,88800.0,88798.0,0.00011944]
[1764954623221,0.01126113,88801.0,88798.0,0.00011944]
[1764954623401,0.22522627,88800.0,88798.0,0.00011944]
[1764954623627,0.22522555,88802.0,88798.0,0.01138095]
[1764954623828,0.01125999,88810.0,88805.0,0.01126062]
[1764954624041,0.323,88811.0,88807.0,0.23646742]
[1764954624247,0.35114744,88818.0,88807.0,0.23646742]
[1764954624248,0.323,88818.0,88815.0,0.01125935]
[1764954624650,0.323,88818.0,88815.0,0.23644567]
[1764954625081,0.323,88818.0,88816.0,0.22518352]
[1764954625421,0.23643056,88821.0,88818.0,0.23643807]
[1764954625594,0.23642543,88823.0,88819.0,0.2364353]
[1764954625752,0.02814618,88822.0,88819.0,0.2364353]
[1764954625955,0.03940465,88822.0,88816.0,0.01125923]
[1764954626223,0.01125885,88819.0,88816.0,0.2251843]
[1764954626357,0.02814713,88819.0,88816.0,0.23644325]
[1764954626561,0.02814713,88819.0,88817.0,0.22518109]
[1764954626772,0.02814713,88819.0,88816.0,0.23644134]
[1764954626773,0.25332442,88819.0,88816.0,0.23644353]
[1764954627019,0.22517729,88819.0,88816.0,0.23644317]
[1764954627222,0.323,88820.0,88818.0,0.22517734]
[1764954627512,0.01125859,88821.0,88819.0,0.22517677]
[1764954627758,0.03940508,88821.0,88818.0,0.01125897]
[1764954627975,0.55942704,88823.0,88819.0,0.23643474]
[1764954628183,0.323,88823.0,88820.0,0.23643259]
[1764954628328,0.323,88823.0,88822.0,0.22516944]
[1764954628530,0.01125783,88827.0,88822.0,0.22516944]
[1764954628531,0.323,88827.0,88826.0,0.22515895]
[1764954628743,0.01125644,88838.0,88833.0,0.23639819]
[1764954628939,0.01125619,88840.0,88833.0,0.05934707]
[1764954628940,0.23638318,88839.0,88833.0,0.05934707]
[1764954629141,0.01125606,88841.0,88837.0,0.01125657]
[1764954629518,0.01125619,88840.0,88834.0,0.2251388]
[1764954629720,0.00011935,88840.0,88839.0,0.22512623]